[Event "Titled Tuesday Blitz May 16 Late 2023"]
[White "ArchibaldCerveza29"]
[Black "Fuentes Godoy, Lilia Ivonne"]
[BlackFideId "5104130"]
[WhiteElo "2380"]
[BlackElo "2096"]
[Result "1-0"]
[Round "03"]
[TimeControl "180+2"]
[Date "2023.05.16"]
[WhiteClock "0:00:04"]
[BlackClock "0:00:01"]

1. d4 {[%clk 0:03:00]}  d5 {[%clk 0:02:59]} 2. c4 {[%clk 0:02:59]}  e6 {[%clk 0:03:00]} 3. Nc3 {[%clk 0:02:59]}  c6 {[%clk 0:02:59]} 4. e4 {[%clk 0:02:59]}  dxe4 {[%clk 0:02:55]} 5. Nxe4 {[%clk 0:03:00]}  Bb4+ {[%clk 0:02:55]} 6. Nc3 {[%clk 0:02:59]}  Nf6 {[%clk 0:02:53]} 7. Nf3 {[%clk 0:02:56]}  O-O {[%clk 0:02:53]} 8. Bd3 {[%clk 0:02:49]}  Nbd7 {[%clk 0:02:52]} 9. O-O {[%clk 0:02:47]}  b6 {[%clk 0:02:52]} 10. Re1 {[%clk 0:02:46]}  Bb7 {[%clk 0:02:52]} 11. h3 {[%clk 0:02:47]}  c5 {[%clk 0:02:46]} 12. Be3 {[%clk 0:02:33]}  cxd4 {[%clk 0:02:36]} 13. Bxd4 {[%clk 0:02:25]}  Bc5 {[%clk 0:02:36]} 14. Be2 {[%clk 0:02:18]}  Bxd4 {[%clk 0:02:32]} 15. Qxd4 {[%clk 0:02:03]}  Nc5 {[%clk 0:02:24]} 16. Qh4 {[%clk 0:02:02]}  Nfe4 {[%clk 0:02:14]} 17. Qxd8 {[%clk 0:01:29]}  Rfxd8 {[%clk 0:02:15]} 18. Nxe4 {[%clk 0:01:25]}  Bxe4 {[%clk 0:02:12]} 19. Red1 {[%clk 0:01:23]}  Kf8 {[%clk 0:02:04]} 20. Nd4 {[%clk 0:01:17]}  Rac8 {[%clk 0:01:38]} 21. Nb5 {[%clk 0:01:15]}  Bc2 {[%clk 0:01:27]} 22. Nxa7 {[%clk 0:00:43]}  Bxd1 {[%clk 0:01:20]} 23. Bxd1 {[%clk 0:00:32]}  Rc7 {[%clk 0:01:15]} 24. Nb5 {[%clk 0:00:32]}  Rcd7 {[%clk 0:01:15]} 25. Bf3 {[%clk 0:00:32]}  Rd2 {[%clk 0:01:12]} 26. b3 {[%clk 0:00:18]}  Nd3 {[%clk 0:01:11]} 27. a4 {[%clk 0:00:15]}  Rb2 {[%clk 0:01:06]} 28. a5 {[%clk 0:00:12]}  bxa5 {[%clk 0:01:04]} 29. Rxa5 {[%clk 0:00:13]}  Rxb3 {[%clk 0:01:01]} 30. Ra7 {[%clk 0:00:13]}  Rb1+ {[%clk 0:01:00]} 31. Kh2 {[%clk 0:00:13]}  Nxf2 {[%clk 0:00:53]} 32. Na3 {[%clk 0:00:07]}  Rc1 {[%clk 0:00:51]} 33. Nb5 {[%clk 0:00:05]}  Nd3 {[%clk 0:00:47]} 34. Kg3 {[%clk 0:00:03]}  Ne5 {[%clk 0:00:46]} 35. Be2 {[%clk 0:00:04]}  Rc2 {[%clk 0:00:43]} 36. Bf1 {[%clk 0:00:04]}  h5 {[%clk 0:00:39]} 37. h4 {[%clk 0:00:04]}  f6 {[%clk 0:00:23]} 38. Ra1 {[%clk 0:00:04]}  g5 {[%clk 0:00:19]} 39. hxg5 {[%clk 0:00:04]}  fxg5 {[%clk 0:00:20]} 40. Nc7 {[%clk 0:00:04]}  Rc3+ {[%clk 0:00:18]} 41. Kh2 {[%clk 0:00:01]}  Ke7 {[%clk 0:00:18]} 42. Nb5 {[%clk 0:00:01]}  Rc2 {[%clk 0:00:16]} 43. Ra7+ {[%clk 0:00:01]}  Kf6 {[%clk 0:00:15]} 44. Kg3 {[%clk 0:00:02]}  h4+ {[%clk 0:00:15]} 45. Kh3 {[%clk 0:00:02]}  g4+ {[%clk 0:00:13]} 46. Kxh4 {[%clk 0:00:01]}  Rh8+ {[%clk 0:00:12]} 47. Kg3 {[%clk 0:00:02]}  Rb2 {[%clk 0:00:07]} 48. Ra6 {[%clk 0:00:01]}  Rb3+ {[%clk 0:00:07]} 49. Kf4 {[%clk 0:00:02]}  Rh5 {[%clk 0:00:04]} 50. Nd6 {[%clk 0:00:01]}  Rb2 {[%clk 0:00:02]} 51. Ne4+ {[%clk 0:00:02]}  Kg6 {[%clk 0:00:02]} 52. Rxe6+ {[%clk 0:00:02]}  Kg7 {[%clk 0:00:02]} 53. Rxe5 {[%clk 0:00:02]}  Rxe5 {[%clk 0:00:03]} 54. Kxe5 {[%clk 0:00:03]}  Rb1 {[%clk 0:00:03]} 55. Bd3 {[%clk 0:00:03]}  Rd1 {[%clk 0:00:03]} 56. Nf2 {[%clk 0:00:04]}  Rd2 {[%clk 0:00:03]} 57. Nxg4 {[%clk 0:00:02]}  Rxg2 {[%clk 0:00:04]} 58. Ne3 {[%clk 0:00:01]}  Rg3 {[%clk 0:00:04]} 59. Nf5+ {[%clk 0:00:02]}  Kg6 {[%clk 0:00:04]} 60. Nxg3+ {[%clk 0:00:03]}  Kg5 {[%clk 0:00:01]} 61. Ne4+ {[%clk 0:00:04]} 1-0


[Site "https://www.chess.com"]

[Event "Titled Tuesday Blitz May 16 Late 2023"]
[White "Slavin, Alexey"]
[Black "Djordjevic, Dejan N"]
[WhiteFideId "24104388"]
[BlackFideId "913316"]
[WhiteElo "2264"]
[BlackElo "2261"]
[Result "0-1"]
[Round "03"]
[TimeControl "180+2"]
[Date "2023.05.16"]
[WhiteClock "0:00:31"]
[BlackClock "0:00:01"]

1. e4 {[%clk 0:02:56]}  c5 {[%clk 0:02:59]} 2. g3 {[%clk 0:02:55]}  Nc6 {[%clk 0:02:59]} 3. Bg2 {[%clk 0:02:55]}  g6 {[%clk 0:02:59]} 4. Ne2 {[%clk 0:02:55]}  Bg7 {[%clk 0:03:00]} 5. Nbc3 {[%clk 0:02:55]}  d6 {[%clk 0:03:00]} 6. O-O {[%clk 0:02:55]}  Nf6 {[%clk 0:03:00]} 7. a3 {[%clk 0:02:55]}  O-O {[%clk 0:02:59]} 8. Rb1 {[%clk 0:02:55]}  Rb8 {[%clk 0:02:59]} 9. b4 {[%clk 0:02:55]}  Bd7 {[%clk 0:02:51]} 10. h3 {[%clk 0:02:53]}  b6 {[%clk 0:02:47]} 11. d3 {[%clk 0:02:52]}  Qc8 {[%clk 0:02:46]} 12. Kh2 {[%clk 0:02:52]}  a5 {[%clk 0:02:39]} 13. b5 {[%clk 0:02:45]}  Nd4 {[%clk 0:02:33]} 14. a4 {[%clk 0:02:45]}  e5 {[%clk 0:02:26]} 15. f4 {[%clk 0:02:43]}  Be6 {[%clk 0:01:53]} 16. Bb2 {[%clk 0:02:40]}  Rd8 {[%clk 0:01:48]} 17. Nd5 {[%clk 0:02:28]}  Nxd5 {[%clk 0:01:41]} 18. exd5 {[%clk 0:02:28]}  Bd7 {[%clk 0:01:39]} 19. fxe5 {[%clk 0:02:22]}  dxe5 {[%clk 0:01:38]} 20. c4 {[%clk 0:02:10]}  f5 {[%clk 0:01:29]} 21. Nxd4 {[%clk 0:02:05]}  cxd4 {[%clk 0:01:23]} 22. Ba3 {[%clk 0:01:56]}  Be8 {[%clk 0:01:16]} 23. Re1 {[%clk 0:01:51]}  Bf7 {[%clk 0:01:16]} 24. Rc1 {[%clk 0:01:47]}  Rd7 {[%clk 0:01:14]} 25. Qb3 {[%clk 0:01:32]}  h5 {[%clk 0:01:08]} 26. c5 {[%clk 0:01:28]}  bxc5 {[%clk 0:01:04]} 27. Rxc5 {[%clk 0:01:28]}  Qd8 {[%clk 0:01:04]} 28. Qc2 {[%clk 0:01:15]}  h4 {[%clk 0:01:03]} 29. g4 {[%clk 0:01:10]}  fxg4 {[%clk 0:00:34]} 30. hxg4 {[%clk 0:01:10]}  Kh7 {[%clk 0:00:30]} 31. Qf2 {[%clk 0:01:07]}  Rb6 {[%clk 0:00:20]} 32. Rc6 {[%clk 0:01:06]}  Rbb7 {[%clk 0:00:18]} 33. d6 {[%clk 0:01:00]}  Qg5 {[%clk 0:00:08]} 34. Bh3 {[%clk 0:00:54]}  Bd5 {[%clk 0:00:03]} 35. Rc2 {[%clk 0:00:47]}  Rb6 {[%clk 0:00:02]} 36. Bc5 {[%clk 0:00:46]}  Rbxd6 {[%clk 0:00:02]} 37. Bxd6 {[%clk 0:00:46]}  Rxd6 {[%clk 0:00:02]} 38. Rc5 {[%clk 0:00:45]}  Rf6 {[%clk 0:00:01]} 39. Qg1 {[%clk 0:00:42]}  Qf4+ {[%clk 0:00:01]} 40. Qg3 {[%clk 0:00:31]}  Qxg3# {[%clk 0:00:01]} 0-1


[Site "https://www.chess.com"]

[Event "Titled Tuesday Blitz May 16 Late 2023"]
[White "Chessadiction1990"]
[Black "Bryant, Todd"]
[BlackFideId "2031299"]
[WhiteElo "2120"]
[BlackElo "2369"]
[Result "1-0"]
[Round "03"]
[TimeControl "180+2"]
[Date "2023.05.16"]
[WhiteClock "0:00:14"]
[BlackClock "0:00:55"]

1. d4 {[%clk 0:02:59]}  Nf6 {[%clk 0:02:51]} 2. c4 {[%clk 0:02:57]}  g6 {[%clk 0:02:51]} 3. h4 {[%clk 0:02:57]}  Bg7 {[%clk 0:02:49]} 4. Nc3 {[%clk 0:02:56]}  d6 {[%clk 0:02:49]} 5. e4 {[%clk 0:02:56]}  Nc6 {[%clk 0:02:49]} 6. d5 {[%clk 0:02:52]}  Ne5 {[%clk 0:02:47]} 7. Be2 {[%clk 0:02:53]}  O-O {[%clk 0:02:32]} 8. h5 {[%clk 0:02:49]}  c5 {[%clk 0:02:30]} 9. hxg6 {[%clk 0:02:48]}  fxg6 {[%clk 0:02:30]} 10. Bh6 {[%clk 0:02:39]}  Bxh6 {[%clk 0:02:23]} 11. Rxh6 {[%clk 0:02:38]}  Nfg4 {[%clk 0:02:23]} 12. Rh4 {[%clk 0:01:41]}  e6 {[%clk 0:02:22]} 13. Rxg4 {[%clk 0:01:40]}  Nxg4 {[%clk 0:02:12]} 14. Bxg4 {[%clk 0:01:39]}  Qh4 {[%clk 0:02:13]} 15. Nh3 {[%clk 0:01:20]}  h5 {[%clk 0:01:59]} 16. Bxe6+ {[%clk 0:01:16]}  Bxe6 {[%clk 0:01:57]} 17. dxe6 {[%clk 0:01:17]}  Rae8 {[%clk 0:01:52]} 18. Qxd6 {[%clk 0:01:02]}  Rd8 {[%clk 0:01:44]} 19. Qxc5 {[%clk 0:00:54]}  Rfe8 {[%clk 0:01:27]} 20. Qg5 {[%clk 0:00:47]}  Qxg5 {[%clk 0:01:20]} 21. Nxg5 {[%clk 0:00:48]}  Kg7 {[%clk 0:01:21]} 22. Nd5 {[%clk 0:00:45]}  Rc8 {[%clk 0:01:11]} 23. b3 {[%clk 0:00:41]}  b5 {[%clk 0:01:08]} 24. Rc1 {[%clk 0:00:31]}  Kh6 {[%clk 0:01:02]} 25. f4 {[%clk 0:00:27]}  h4 {[%clk 0:01:01]} 26. e7 {[%clk 0:00:20]}  b4 {[%clk 0:00:55]} 27. Nf7+ {[%clk 0:00:19]}  Kg7 {[%clk 0:00:55]} 28. Nd6 {[%clk 0:00:18]}  Ra8 {[%clk 0:00:56]} 29. Nxe8+ {[%clk 0:00:18]}  Rxe8 {[%clk 0:00:57]} 30. Kf2 {[%clk 0:00:15]}  Kf7 {[%clk 0:00:57]} 31. Rh1 {[%clk 0:00:15]}  Rh8 {[%clk 0:00:57]} 32. Kf3 {[%clk 0:00:15]}  Ke8 {[%clk 0:00:57]} 33. Kg4 {[%clk 0:00:14]}  a5 {[%clk 0:00:54]} 34. Rxh4 {[%clk 0:00:15]}  Rg8 {[%clk 0:00:55]} 35. Nf6+ {[%clk 0:00:14]}  Kf7 {[%clk 0:00:56]} 36. Nxg8 {[%clk 0:00:15]}  Ke8 {[%clk 0:00:55]} 37. Rh7 {[%clk 0:00:14]}  a4 {[%clk 0:00:55]} 38. Nf6# {[%clk 0:00:14]} 1-0


[Site "https://www.chess.com"]

[Event "Titled Tuesday Blitz May 16 Late 2023"]
[White "Torres Dominguez, David"]
[Black "Schuster, Karsten"]
[WhiteFideId "2220857"]
[BlackFideId "4611071"]
[WhiteElo "1999"]
[BlackElo "2254"]
[Result "0-1"]
[Round "03"]
[TimeControl "180+2"]
[Date "2023.05.16"]
[WhiteClock "0:00:00"]
[BlackClock "0:01:26"]

1. e4 {[%clk 0:03:00]}  d5 {[%clk 0:02:59]} 2. d3 {[%clk 0:02:59]}  c6 {[%clk 0:02:57]} 3. Nf3 {[%clk 0:02:58]}  Bg4 {[%clk 0:02:51]} 4. Be2 {[%clk 0:02:58]}  dxe4 {[%clk 0:02:50]} 5. dxe4 {[%clk 0:02:58]}  Qxd1+ {[%clk 0:02:50]} 6. Kxd1 {[%clk 0:02:58]}  Nf6 {[%clk 0:02:50]} 7. Nfd2 {[%clk 0:02:58]}  Be6 {[%clk 0:02:46]} 8. f3 {[%clk 0:02:56]}  g6 {[%clk 0:02:47]} 9. Bc4 {[%clk 0:02:56]}  Bxc4 {[%clk 0:02:44]} 10. Nxc4 {[%clk 0:02:55]}  Bg7 {[%clk 0:02:45]} 11. c3 {[%clk 0:02:55]}  O-O {[%clk 0:02:43]} 12. Ke2 {[%clk 0:02:55]}  Nbd7 {[%clk 0:02:41]} 13. Be3 {[%clk 0:02:54]}  b5 {[%clk 0:02:35]} 14. Na5 {[%clk 0:02:53]}  Rfc8 {[%clk 0:02:34]} 15. Nd2 {[%clk 0:02:40]}  Nb6 {[%clk 0:02:34]} 16. Rhd1 {[%clk 0:02:27]}  c5 {[%clk 0:02:32]} 17. a3 {[%clk 0:02:20]}  Ne8 {[%clk 0:02:25]} 18. Rab1 {[%clk 0:02:08]}  b4 {[%clk 0:02:21]} 19. c4 {[%clk 0:02:02]}  Na4 {[%clk 0:02:18]} 20. axb4 {[%clk 0:01:48]}  cxb4 {[%clk 0:02:14]} 21. Nab3 {[%clk 0:01:41]}  Bxb2 {[%clk 0:02:11]} 22. Kf2 {[%clk 0:01:28]}  Bf6 {[%clk 0:02:04]} 23. Rdc1 {[%clk 0:01:23]}  Nc3 {[%clk 0:02:04]} 24. Ra1 {[%clk 0:01:20]}  Nd6 {[%clk 0:01:59]} 25. Rxa7 {[%clk 0:01:15]}  Rxa7 {[%clk 0:01:54]} 26. Bxa7 {[%clk 0:01:15]}  Nxc4 {[%clk 0:01:55]} 27. Nxc4 {[%clk 0:01:12]}  Rxc4 {[%clk 0:01:54]} 28. Be3 {[%clk 0:01:00]}  h5 {[%clk 0:01:52]} 29. Nd2 {[%clk 0:00:59]}  Rc8 {[%clk 0:01:36]} 30. Nb3 {[%clk 0:00:57]}  Ra8 {[%clk 0:01:32]} 31. Rc2 {[%clk 0:00:20]}  Ra3 {[%clk 0:01:28]} 32. Nd4 {[%clk 0:00:05]}  Nd1+ {[%clk 0:01:27]} 33. Ke2 {[%clk 0:00:00]}  Nxe3 {[%clk 0:01:26]} 0-1


[Site "https://www.chess.com"]

[Event "Titled Tuesday Blitz May 16 Late 2023"]
[White "a-z30"]
[Black "Stead, Kerry"]
[BlackFideId "3202577"]
[WhiteElo "2365"]
[BlackElo "1997"]
[Result "0-1"]
[Round "03"]
[TimeControl "180+2"]
[Date "2023.05.16"]
[WhiteClock "0:00:02"]
[BlackClock "0:00:51"]

1. d4 {[%clk 0:03:00]}  c5 {[%clk 0:02:58]} 2. d5 {[%clk 0:03:00]}  f5 {[%clk 0:02:58]} 3. Nc3 {[%clk 0:02:59]}  g6 {[%clk 0:02:56]} 4. g3 {[%clk 0:02:58]}  d6 {[%clk 0:02:56]} 5. Bg2 {[%clk 0:02:57]}  Bg7 {[%clk 0:02:56]} 6. Nh3 {[%clk 0:02:56]}  Nd7 {[%clk 0:02:49]} 7. Nf4 {[%clk 0:02:48]}  Bxc3+ {[%clk 0:02:38]} 8. bxc3 {[%clk 0:02:47]}  Ne5 {[%clk 0:02:39]} 9. h4 {[%clk 0:02:39]}  Nf6 {[%clk 0:02:36]} 10. h5 {[%clk 0:02:35]}  g5 {[%clk 0:02:35]} 11. Ne6 {[%clk 0:02:28]}  Bxe6 {[%clk 0:02:30]} 12. dxe6 {[%clk 0:02:29]}  Qc8 {[%clk 0:02:17]} 13. Bxg5 {[%clk 0:02:25]}  Qxe6 {[%clk 0:02:16]} 14. Bxb7 {[%clk 0:02:13]}  Rb8 {[%clk 0:02:14]} 15. Bxf6 {[%clk 0:02:11]}  Qxf6 {[%clk 0:02:07]} 16. Bd5 {[%clk 0:01:53]}  f4 {[%clk 0:02:04]} 17. Rb1 {[%clk 0:01:44]}  Kd7 {[%clk 0:01:47]} 18. gxf4 {[%clk 0:00:21]}  Qxf4 {[%clk 0:01:46]} 19. e3 {[%clk 0:00:21]}  Qf5 {[%clk 0:01:37]} 20. Rg1 {[%clk 0:00:15]}  Nd3+ {[%clk 0:01:23]} 21. cxd3 {[%clk 0:00:11]}  Qxd5 {[%clk 0:01:21]} 22. Qg4+ {[%clk 0:00:11]}  Kc6 {[%clk 0:01:09]} 23. Rxb8 {[%clk 0:00:04]}  Rxb8 {[%clk 0:01:08]} 24. Qg2 {[%clk 0:00:04]}  Rb1+ {[%clk 0:01:03]} 25. Ke2 {[%clk 0:00:05]}  Rb2+ {[%clk 0:01:03]} 26. Kd1 {[%clk 0:00:03]}  Rb1+ {[%clk 0:00:57]} 27. Kd2 {[%clk 0:00:04]}  Rxg1 {[%clk 0:00:52]} 28. Qxg1 {[%clk 0:00:04]}  Qxa2+ {[%clk 0:00:51]} 29. Ke1 {[%clk 0:00:02]}  Qb1+ {[%clk 0:00:51]} 30. Ke2 {[%clk 0:00:02]}  Qxg1 {[%clk 0:00:51]} 0-1


[Site "https://www.chess.com"]

[Event "Titled Tuesday Blitz May 16 Late 2023"]
[White "Kaganskiy, Gleb"]
[Black "Joubert, Dantelle"]
[WhiteFideId "4132025"]
[BlackFideId "14310813"]
[WhiteElo "2165"]
[BlackElo "1507"]
[Result "1-0"]
[Round "03"]
[TimeControl "180+2"]
[Date "2023.05.16"]
[WhiteClock "0:00:05"]
[BlackClock "0:00:00"]

1. Nf3 {[%clk 0:03:00]}  d5 {[%clk 0:02:59]} 2. e3 {[%clk 0:03:00]}  Nf6 {[%clk 0:02:58]} 3. b3 {[%clk 0:03:00]}  c6 {[%clk 0:02:49]} 4. Bb2 {[%clk 0:02:58]}  e6 {[%clk 0:02:49]} 5. d4 {[%clk 0:02:49]}  Nbd7 {[%clk 0:02:46]} 6. Bd3 {[%clk 0:02:46]}  Bd6 {[%clk 0:02:44]} 7. Ne5 {[%clk 0:02:42]}  Qa5+ {[%clk 0:02:24]} 8. Nd2 {[%clk 0:02:16]}  Bb4 {[%clk 0:02:19]} 9. a3 {[%clk 0:02:11]}  Bxd2+ {[%clk 0:02:08]} 10. Qxd2 {[%clk 0:02:12]}  Qxd2+ {[%clk 0:02:06]} 11. Kxd2 {[%clk 0:02:12]}  Nxe5 {[%clk 0:02:04]} 12. dxe5 {[%clk 0:02:12]}  Nd7 {[%clk 0:01:50]} 13. h4 {[%clk 0:02:05]}  b6 {[%clk 0:01:34]} 14. h5 {[%clk 0:02:03]}  h6 {[%clk 0:01:33]} 15. Rh3 {[%clk 0:02:01]}  Nc5 {[%clk 0:01:30]} 16. Rg3 {[%clk 0:01:56]}  Nxd3 {[%clk 0:01:21]} 17. cxd3 {[%clk 0:01:55]}  O-O {[%clk 0:01:20]} 18. b4 {[%clk 0:01:25]}  a5 {[%clk 0:01:07]} 19. Rh1 {[%clk 0:01:09]}  axb4 {[%clk 0:00:54]} 20. axb4 {[%clk 0:01:10]}  Bb7 {[%clk 0:00:54]} 21. Rh4 {[%clk 0:01:09]}  Kh7 {[%clk 0:00:47]} 22. Rhg4 {[%clk 0:01:07]}  Rg8 {[%clk 0:00:45]} 23. Bd4 {[%clk 0:00:55]}  Ra2+ {[%clk 0:00:39]} 24. Kc3 {[%clk 0:00:52]}  c5 {[%clk 0:00:28]} 25. bxc5 {[%clk 0:00:51]}  bxc5 {[%clk 0:00:28]} 26. Bxc5 {[%clk 0:00:52]}  Rxf2 {[%clk 0:00:26]} 27. Be7 {[%clk 0:00:39]}  Ba6 {[%clk 0:00:17]} 28. Kd4 {[%clk 0:00:33]}  Ra2 {[%clk 0:00:15]} 29. e4 {[%clk 0:00:20]}  Ra4+ {[%clk 0:00:12]} 30. Ke3 {[%clk 0:00:20]}  dxe4 {[%clk 0:00:12]} 31. dxe4 {[%clk 0:00:19]}  Ra3+ {[%clk 0:00:11]} 32. Bxa3 {[%clk 0:00:19]}  Bb5 {[%clk 0:00:08]} 33. Bd6 {[%clk 0:00:17]}  Bc6 {[%clk 0:00:07]} 34. Kf4 {[%clk 0:00:17]}  Bb5 {[%clk 0:00:06]} 35. Be7 {[%clk 0:00:17]}  Bc6 {[%clk 0:00:04]} 36. Bf6 {[%clk 0:00:16]}  g6 {[%clk 0:00:04]} 37. hxg6+ {[%clk 0:00:16]}  fxg6 {[%clk 0:00:05]} 38. Rc3 {[%clk 0:00:13]}  g5+ {[%clk 0:00:05]} 39. Kg3 {[%clk 0:00:09]}  Bxe4 {[%clk 0:00:05]} 40. Rxe4 {[%clk 0:00:08]}  h5 {[%clk 0:00:04]} 41. Rc7+ {[%clk 0:00:07]}  Kg6 {[%clk 0:00:05]} 42. Rd4 {[%clk 0:00:07]}  Kf5 {[%clk 0:00:04]} 43. Rdd7 {[%clk 0:00:07]}  Ra8 {[%clk 0:00:03]} 44. Ra7 {[%clk 0:00:07]}  Rb8 {[%clk 0:00:03]} 45. Rdb7 {[%clk 0:00:07]}  Rc8 {[%clk 0:00:04]} 46. Rc7 {[%clk 0:00:07]}  Rb8 {[%clk 0:00:04]} 47. Ra3 {[%clk 0:00:06]}  Rb1 {[%clk 0:00:03]} 48. Rf3+ {[%clk 0:00:06]}  Ke4 {[%clk 0:00:00]} 49. Bxg5 {[%clk 0:00:05]} 1-0


[Site "https://www.chess.com"]

[Event "Titled Tuesday Blitz May 16 Late 2023"]
[White "Manu_ChessExcelsior"]
[Black "Pavlidou, Ekaterini"]
[BlackFideId "4213262"]
[WhiteElo "2057"]
[BlackElo "2126"]
[Result "1/2-1/2"]
[Round "03"]
[TimeControl "180+2"]
[Date "2023.05.16"]
[WhiteClock "0:00:07"]
[BlackClock "0:00:17"]

1. e4 {[%clk 0:03:00]}  c5 {[%clk 0:02:57]} 2. g3 {[%clk 0:03:00]}  Nc6 {[%clk 0:02:55]} 3. Bg2 {[%clk 0:03:00]}  g6 {[%clk 0:02:55]} 4. d3 {[%clk 0:03:01]}  Bg7 {[%clk 0:02:56]} 5. f4 {[%clk 0:03:01]}  d6 {[%clk 0:02:57]} 6. Nf3 {[%clk 0:03:02]}  h5 {[%clk 0:02:55]} 7. c3 {[%clk 0:03:01]}  e5 {[%clk 0:02:54]} 8. Na3 {[%clk 0:02:41]}  h4 {[%clk 0:02:51]} 9. O-O {[%clk 0:02:34]}  hxg3 {[%clk 0:02:45]} 10. hxg3 {[%clk 0:02:34]}  Bg4 {[%clk 0:02:46]} 11. Nc4 {[%clk 0:02:23]}  b5 {[%clk 0:02:43]} 12. Ne3 {[%clk 0:02:23]}  Qd7 {[%clk 0:02:42]} 13. f5 {[%clk 0:02:14]}  Nf6 {[%clk 0:02:32]} 14. Nxg4 {[%clk 0:02:00]}  Nxg4 {[%clk 0:02:32]} 15. Nh4 {[%clk 0:01:42]}  Rxh4 {[%clk 0:02:18]} 16. gxh4 {[%clk 0:01:41]}  Nf6 {[%clk 0:02:06]} 17. fxg6 {[%clk 0:01:30]}  fxg6 {[%clk 0:02:06]} 18. Qf3 {[%clk 0:01:31]}  Ke7 {[%clk 0:01:36]} 19. Bg5 {[%clk 0:01:27]}  Rf8 {[%clk 0:01:35]} 20. Rf2 {[%clk 0:01:18]}  Nd8 {[%clk 0:01:00]} 21. Raf1 {[%clk 0:00:51]}  Ne6 {[%clk 0:00:51]} 22. Qg4 {[%clk 0:00:22]}  Nxg5 {[%clk 0:00:46]} 23. Qxd7+ {[%clk 0:00:22]}  Nxd7 {[%clk 0:00:41]} 24. hxg5 {[%clk 0:00:20]}  Rxf2 {[%clk 0:00:39]} 25. Rxf2 {[%clk 0:00:20]}  c4 {[%clk 0:00:39]} 26. dxc4 {[%clk 0:00:19]}  bxc4 {[%clk 0:00:38]} 27. Bh3 {[%clk 0:00:19]}  Nc5 {[%clk 0:00:38]} 28. Bf1 {[%clk 0:00:18]}  Nxe4 {[%clk 0:00:38]} 29. Rg2 {[%clk 0:00:17]}  d5 {[%clk 0:00:38]} 30. b3 {[%clk 0:00:15]}  cxb3 {[%clk 0:00:36]} 31. axb3 {[%clk 0:00:16]}  Nxc3 {[%clk 0:00:36]} 32. Rd2 {[%clk 0:00:11]}  e4 {[%clk 0:00:35]} 33. Bh3 {[%clk 0:00:09]}  e3 {[%clk 0:00:35]} 34. Rd3 {[%clk 0:00:06]}  d4 {[%clk 0:00:32]} 35. Kf1 {[%clk 0:00:05]}  Be5 {[%clk 0:00:29]} 36. Bg2 {[%clk 0:00:02]}  Kd6 {[%clk 0:00:25]} 37. Bf3 {[%clk 0:00:02]}  Kc5 {[%clk 0:00:24]} 38. Bg4 {[%clk 0:00:01]}  Kb4 {[%clk 0:00:24]} 39. Be6 {[%clk 0:00:02]}  Ka3 {[%clk 0:00:23]} 40. Bf7 {[%clk 0:00:02]}  Bf4 {[%clk 0:00:19]} 41. Bxg6 {[%clk 0:00:03]}  Bxg5 {[%clk 0:00:18]} 42. Rxd4 {[%clk 0:00:03]}  e2+ {[%clk 0:00:18]} 43. Kf2 {[%clk 0:00:02]}  Bf6 {[%clk 0:00:18]} 44. Re4 {[%clk 0:00:03]}  Bd8 {[%clk 0:00:16]} 45. Rxe2 {[%clk 0:00:03]}  Nxe2 {[%clk 0:00:16]} 46. Kxe2 {[%clk 0:00:03]}  Kxb3 {[%clk 0:00:16]} 47. Bf7+ {[%clk 0:00:03]}  Kb2 {[%clk 0:00:16]} 48. Kd1 {[%clk 0:00:04]}  a5 {[%clk 0:00:16]} 49. Bg8 {[%clk 0:00:04]}  a4 {[%clk 0:00:17]} 50. Bf7 {[%clk 0:00:05]}  a3 {[%clk 0:00:17]} 51. Bg8 {[%clk 0:00:06]}  Bb6 {[%clk 0:00:18]} 52. Bf7 {[%clk 0:00:06]}  Bc5 {[%clk 0:00:19]} 53. Bg8 {[%clk 0:00:07]}  Bd4 {[%clk 0:00:19]} 54. Bf7 {[%clk 0:00:07]}  Bc3 {[%clk 0:00:17]} 55. Bg8 {[%clk 0:00:07]} 1/2-1/2


[Site "https://www.chess.com"]

[Event "Titled Tuesday Blitz May 16 Late 2023"]
[White "Vargas, Mauricio"]
[Black "Fernandez Siles, Luis"]
[WhiteFideId "4404572"]
[BlackFideId "2209420"]
[WhiteElo "1986"]
[BlackElo "2195"]
[Result "0-1"]
[Round "03"]
[TimeControl "180+2"]
[Date "2023.05.16"]
[WhiteClock "0:00:00"]
[BlackClock "0:00:52"]

1. e4 {[%clk 0:00:55]}  c5 {[%clk 0:02:56]} 2. g3 {[%clk 0:00:54]}  d5 {[%clk 0:02:54]} 3. Bg2 {[%clk 0:00:55]}  dxe4 {[%clk 0:02:53]} 4. Bxe4 {[%clk 0:00:56]}  Nf6 {[%clk 0:02:53]} 5. Bg2 {[%clk 0:00:56]}  Nc6 {[%clk 0:02:46]} 6. d3 {[%clk 0:00:56]}  g6 {[%clk 0:02:44]} 7. Be3 {[%clk 0:00:56]}  Bg7 {[%clk 0:02:27]} 8. Nc3 {[%clk 0:00:56]}  Nd4 {[%clk 0:02:18]} 9. Nf3 {[%clk 0:00:54]}  O-O {[%clk 0:02:16]} 10. O-O {[%clk 0:00:53]}  Bg4 {[%clk 0:02:15]} 11. h3 {[%clk 0:00:52]}  Nxf3+ {[%clk 0:02:14]} 12. Bxf3 {[%clk 0:00:51]}  Bxh3 {[%clk 0:02:14]} 13. g4 {[%clk 0:00:50]}  Qd7 {[%clk 0:02:00]} 14. Bxc5 {[%clk 0:00:21]}  Bxf1 {[%clk 0:01:48]} 15. Qxf1 {[%clk 0:00:20]}  Nxg4 {[%clk 0:01:46]} 16. Qg2 {[%clk 0:00:16]}  Ne5 {[%clk 0:01:28]} 17. Bxb7 {[%clk 0:00:13]}  Rab8 {[%clk 0:01:28]} 18. Bd5 {[%clk 0:00:10]}  Rfc8 {[%clk 0:01:12]} 19. d4 {[%clk 0:00:09]}  Rxb2 {[%clk 0:01:06]} 20. Bb3 {[%clk 0:00:06]}  Nc6 {[%clk 0:00:57]} 21. Na4 {[%clk 0:00:05]}  Rxb3 {[%clk 0:00:55]} 22. axb3 {[%clk 0:00:04]}  Nxd4 {[%clk 0:00:54]} 23. Rd1 {[%clk 0:00:00]}  Ne2+ {[%clk 0:00:52]} 0-1


[Site "https://www.chess.com"]

[Event "Titled Tuesday Blitz May 16 Late 2023"]
[White "Caruana, Fabiano"]
[Black "Rodshtein, Maxim"]
[WhiteFideId "2020009"]
[BlackFideId "2806851"]
[WhiteElo "2837"]
[BlackElo "2555"]
[Result "1-0"]
[Round "04"]
[TimeControl "180+2"]
[Date "2023.05.16"]
[WhiteClock "0:01:23"]
[BlackClock "0:00:00"]

1. e4 {[%clk 0:03:00]}  e6 {[%clk 0:02:58]} 2. d4 {[%clk 0:02:57]}  d5 {[%clk 0:02:59]} 3. exd5 {[%clk 0:02:55]}  exd5 {[%clk 0:02:59]} 4. Bd3 {[%clk 0:02:55]}  c6 {[%clk 0:02:56]} 5. Nf3 {[%clk 0:02:55]}  Bd6 {[%clk 0:02:56]} 6. O-O {[%clk 0:02:55]}  Ne7 {[%clk 0:02:56]} 7. c4 {[%clk 0:02:48]}  O-O {[%clk 0:02:48]} 8. Nc3 {[%clk 0:02:43]}  dxc4 {[%clk 0:02:47]} 9. Bxc4 {[%clk 0:02:44]}  Nd7 {[%clk 0:02:46]} 10. h3 {[%clk 0:02:41]}  Nb6 {[%clk 0:02:45]} 11. Bb3 {[%clk 0:02:41]}  h6 {[%clk 0:02:42]} 12. Re1 {[%clk 0:02:40]}  Bf5 {[%clk 0:02:41]} 13. Ne5 {[%clk 0:02:39]}  Nbd5 {[%clk 0:02:28]} 14. Qh5 {[%clk 0:02:37]}  Bxe5 {[%clk 0:02:20]} 15. dxe5 {[%clk 0:02:33]}  Nxc3 {[%clk 0:01:46]} 16. bxc3 {[%clk 0:02:34]}  Bg6 {[%clk 0:01:18]} 17. Qg4 {[%clk 0:02:30]}  Nd5 {[%clk 0:01:11]} 18. Ba3 {[%clk 0:02:10]}  Re8 {[%clk 0:01:11]} 19. c4 {[%clk 0:02:06]}  Nc7 {[%clk 0:01:08]} 20. Bd6 {[%clk 0:01:56]}  Ne6 {[%clk 0:01:07]} 21. c5 {[%clk 0:01:56]}  Qa5 {[%clk 0:00:46]} 22. Rad1 {[%clk 0:01:28]}  Kh8 {[%clk 0:00:32]} 23. f4 {[%clk 0:01:26]}  Nxc5 {[%clk 0:00:00]} 24. f5 {[%clk 0:01:23]} 1-0


[Site "https://www.chess.com"]